Cogmind - Beta 16.1 @@@ ROGUE MODE // 2026.03.30 @ 20:26:49 Player: Gatamar Result: Destroyed by Q4-RTP(R) with Subdweller Beam Cannon Performance ------------- Evolutions (0) 0 Regions Visited (2) 400 Robots Destroyed (14) 70 Value Destroyed (306) 306 Prototype IDs (13) 260 Alien Tech Used (0) 0 Bonus (0) 0 TOTAL SCORE: 1036 Bonus ------- None Cogmind --------- Core Integrity 0/250 Matter 284/300 Energy 100/100 System Corruption 0% Temperature Cool (9) Movement Treading (160) Location -10/Subcaves Parts ------- > --- POWER (1) -------- (None) > --- PROPULSION (2) --- Light Treads Spiked Treads > --- UTILITY (2) ------ Large Storage Unit Seismic Detector > --- WEAPON (2) ------- Assault Rifle > --- INVENTORY (15) --- Light Treads Aluminum Leg Aluminum Leg Utility Shielding Hacking Suite EM Pulse Gun Small Laser Grenade Launcher 1B-0RG's Assimilator Datajack Peak State ------------ > --- POWER ------------ Light Ion Engine > --- PROPULSION ------- Light Treads Spiked Treads > --- UTILITY ---------- Large Storage Unit Seismic Detector > --- WEAPON ----------- Makeshift Shrapnel Gun Battle Cannon > --- INVENTORY -------- Light Treads Aluminum Leg Aluminum Leg Utility Shielding Hacking Suite EM Pulse Gun Small Laser Assault Rifle Grenade Launcher 1B-0RG's Assimilator Datajack [Rating: 19] Favorites ----------- Power Light Ion Engine Engine Light Ion Engine Propulsion Light Treads Treads Light Treads Utility Seismic Detector Device Seismic Detector Storage Large Storage Unit Weapon Assault Rifle Energy Gun EM Pulse Gun Ballistic Gun Assault Rifle Ballistic Cannon Battle Cannon Launcher Grenade Launcher Build | -11 -10 -10 ------- Run | Yrd Mat Sub Slots Evolved . | . . . Power . | . . . Propulsion . | . . . Utility . | . . . Weapon . | . . . Parts Attached 15 | 7 3 5 Power 2 | 2 . . Engine 2 | 2 . . Core . | . . . Reactor . | . . . Propulsion 3 | 2 . 1 Treads 3 | 2 . 1 Leg . | . . . Wheel . | . . . Hover . | . . . Flight . | . . . Utility 4 | 1 3 . Device 1 | . 1 . Storage 3 | 1 2 . Processor . | . . . Hackware . | . . . Protection . | . . . Artifact . | . . . Weapon 6 | 2 . 4 Energy Gun 2 | 1 . 1 Energy Cannon . | . . . Ballistic Gun 2 | 1 . 1 Ballistic Cannon 1 | . . 1 Launcher 1 | . . 1 Special Weapon . | . . . Impact Weapon . | . . . Slashing Weapon . | . . . Piercing Weapon . | . . . Special Melee Weapon . | . . . Unidentified Prototypes . | . . . Parts Lost 4 | . . 4 Power 2 | . . 2 Propulsion . | . . . Utility . | . . . Weapon 2 | . . 2 Highest Loss Streak 2 | . . 2 To Critical Strikes . | . . . Average Backups 9 | 2 7 10 Power . | . 1 . Propulsion 2 | 1 2 2 Utility 2 | . 1 3 Weapon 2 | . 1 3 Tool/Special . | . . . Unused Backups 6 | . . 6 Power . | . . . Propulsion 2 | . . 2 Utility 2 | . . 2 Weapon . | . . . Tool/Special 2 | . . 2 Average Slot Usage (%) 97 | . 92 99 Engine 14 | . 14 14 Treads 28 | . 28 28 Device 11 | . 6 14 Storage 14 | . 14 14 Energy Gun 7 | . 13 4 Ballistic Gun 13 | . 14 13 Ballistic Cannon 6 | . . 9 Peak Build Rating 19 | 6 8 19 Average Rating 11 | 5 6 13 On Entrance 4 | . 6 8 Avg Prop Armor Cover (%) . | . . . Naked Turns . | . . . Heaviest Build 31 | 14 30 31 Greatest Support 40 | 40 40 40 Greatest Overweight (x) . | . . . Average Overweight (x) . | . . . Largest Inventory Capacity 15 | 8 15 15 Average Capacity 12 | 7 9 15 Most Carried 15 | 4 10 15 Average Carried 10 | 2 7 12 Final Capacity 15 | 8 15 15 Final Carried 14 | 4 10 14 Class Distribution -------------------- 100% | Mutant Dominant Class ---------------- Mutant | -10/Materials Mutant | -10/Subcaves Resources | -11 -10 -10 ----------- Run | Yrd Mat Sub Matter Collected 594 | 178 192 224 Remotely . | . . . Salvage Created 577 | . 450 127 Parts 33 | . 26 7 Haulers Intercepted . | . . . Recyclers Shooed 4 | . 4 . Parts Field Recycled . | . . . Retrieved Matter . | . . . Parts Self-Destructed 9 | . . 9 Prevented . | . . . Parts Restored . | . . . Kills | -11 -10 -10 ------- Run | Yrd Mat Sub Combat Hostiles Destroyed 9 | . 5 4 Guns 7 | . 5 2 Cannons 2 | . . 2 Classes Destroyed 6 | . 4 2 Recycler 3 | . 3 . Operator 2 | . 2 . Swarmer 4 | . 3 1 Grunt 2 | . 2 . Sentry 1 | . . 1 Subdweller 2 | . . 2 Best Kill Streak 3 | . 3 1 Combat Bots Only 3 | . 3 1 Max Kills in Single Turn 1 | . 1 1 Gunslinging . | . . . Exploded . | . . . Melee . | . . . Uniques/NPCs Destroyed . | . . . Combat | -11 -10 -10 -------- Run | Yrd Mat Sub Hostile Shots Fired 70 | . 34 36 Missed 21 | . 7 14 Hits 49 | . 27 22 Projectile 49 | . 27 22 AOE 1 | . . 1 Critical Strikes 1 | . 1 . Damage Taken 830 | . 281 549 Core 251 | . 77 174 Absorbed by Shields . | . . . Regen/Repaired (Parts) 36 | . 36 . Core Remaining (%) 100 | 100 . . Volleys Fired 62 | . 30 32 Largest 2 | . 2 2 Hottest 70 | . 60 70 Shots Fired 105 | . 60 45 Gun 86 | . 60 26 Cannon 18 | . . 18 Launcher 1 | . . 1 Special . | . . . Kinetic 61 | . 30 31 Thermal . | . . . Explosive 1 | . . 1 Electromagnetic 43 | . 30 13 Robot Hit Streak 10 | . 8 10 Robot Miss Streak 3 | . 3 2 Penetration Max . | . . . Secondary Targets 1 | . 1 . Max Gunslinging Chain 1 | . 1 . Shots Hit Robots 69 | . 38 31 Core Hits 21 | . 14 7 Critical Kills . | . . . Critical Parts Destroyed . | . . . Critical Strikes 2 | . . 2 Blast 2 | . . 2 Melee Attacks . | . . . Impact . | . . . Slashing . | . . . Piercing . | . . . Sneak Attacks . | . . . Combat Hostiles . | . . . Follow-up Attacks . | . . . Damage Inflicted 1001 | . 520 481 Guns 729 | . 476 253 Cannons 200 | . . 200 Explosions 72 | . 44 28 Melee . | . . . Ramming . | . . . Kinetic 543 | . 223 320 Thermal 44 | . 44 . Explosive 28 | . . 28 Electromagnetic 386 | . 253 133 Impact . | . . . Slashing . | . . . Piercing . | . . . Highest Corruption . | . . . Average Corruption . | . . . Corruption Purged . | . . . Corruption Blocked . | . . . Overload Shots . | . . . Overflow Damage . | . . . Projectiles . | . . . Explosions . | . . . Melee . | . . . Knockbacks 2 | . . 2 Impact . | . . . Kinetic 2 | . . 2 Secondary . | . . . Self-Inflicted Damage 4 | . . 4 Shots 1 | . . 1 Rammed . | . . . Targets Rammed . | . . . Kicked . | . . . Crushed . | . . . Highest Temperature 69 | . 69 . Average Temperature 51 | . 51 . Received Heat Transfer 228 | . 120 108 Siege Activations . | . . . Martial Activations . | . . . Shielding Activations . | . . . Robots Disrupted . | . . . Combat Hostiles . | . . . Robots Corrupted . | . . . Combat Hostiles . | . . . Parts Fried 1 | . . 1 Impact Corruptions . | . . . Robots Melted . | . . . Combat Hostiles . | . . . Parts Melted . | . . . Heat Transferred . | . . . Parts Sabotaged . | . . . Parts Stolen . | . . . Parts Stripped . | . . . Power Chain Reactions 1 | . 1 . Alert | -11 -10 -10 ------- Run | Yrd Mat Sub Maximum Alert Level . | . . . Low Security (%) 100 | 100 100 . Level 1 . | . . . Level 2 . | . . . Level 3 . | . . . Level 4 . | . . . Level 5 . | . . . High Security . | . . . Max Security . | . . . Peak Influence 90 | . 90 . Initial . | . . . Average 21 | . 24 . Influence Increases 247 | . 207 40 Destroy 0b10 Robot/C 140 | . 100 40 Destroy 0b10 Robot/NC 25 | . 25 . Destroy Leader 20 | . 20 . Successful Hack 29 | . 29 . Disable Machine 15 | . 15 . Destroy Structure 3 | . 3 . Lose Combat Pursuer 15 | . 15 . Influence Decreases 247 | . 207 40 Time Decay 247 | . 207 40 Squads Dispatched 1 | . 1 . Investigation . | . . . Extermination . | . . . Reinforcement 1 | . 1 . Assault . | . . . Garrison . | . . . Intercept . | . . . Searches Triggered . | . . . Construction Impeded . | . . . Haulers Reinforced . | . . . Active Scanning Responses . | . . . Cargo Convoy Interrupts . | . . . Stealth | -11 -10 -10 --------- Run | Yrd Mat Sub Distress Signals 2 | . 2 . Communications Jammed . | . . . Distress Signals . | . . . Times Spotted 18 | . 10 8 Peak Tracking Total 5 | . 5 2 Tactical Retreats 1 | . 1 . Traps | -11 -10 -10 ------- Run | Yrd Mat Sub Traps Triggered 1 | . . 1 Indirectly . | . . . Trap Hack Attempts . | . . . Triggered . | . . . Disarmed . | . . . Reprogrammed . | . . . Reused . | . . . Traps Extracted . | . . . Installed . | . . . Triggered . | . . . Machines | -11 -10 -10 ---------- Run | Yrd Mat Sub Machines Disabled 1 | . 1 . Max in Single Turn 1 | . 1 . Machines Repaired . | . . . Machines Dismantled . | . . . Machines Sabotaged . | . . . Overloaded Fab Kills . | . . . Hacking | -11 -10 -10 --------- Run | Yrd Mat Sub Machines Accessed 4 | . 3 1 Terminals 2 | . 2 . Fabricators . | . . . Repair Stations 1 | . 1 . Recycling Units . | . . . Scanalyzers . | . . . Garrison Access . | . . . Total Hacks 15 | . 6 9 Successful 13 | . 4 9 Failed 2 | . 2 . Catastrophic . | . . . Database Lockouts . | . . . Manual . | . . . Terminals 4 | . 4 . Fabricators . | . . . Repair Stations 2 | . 2 . Recycling Units . | . . . Scanalyzers . | . . . Garrison Access . | . . . Terminal Hacks 11 | . 2 9 Record 8 | . . 8 Emergency Access Points 1 | . 1 . Transport Status 1 | . 1 . Proto ID Catalog 1 | . . 1 Fabricator Hacks . | . . . Repair Station Hacks 2 | . 2 . Scan Component 1 | . 1 . Repair 1 | . 1 . Recycling Unit Hacks . | . . . Scanalyzer . | . . . Garrison Access Hacks . | . . . Unauthorized Hacks . | . . . Terminals . | . . . Fabricators . | . . . Repair Stations . | . . . Recycling Units . | . . . Scanalyzers . | . . . Garrison Access . | . . . Data Cores Recovered 1 | . 1 . Used . | . . . Hacking Detections 3 | . 3 . Full Trace Events . | . . . Feedback Events . | . . . Feedback Blocked . | . . . Robot Schematics Acquired . | . . . Robots Built . | . . . Authchips . | . . . Time . | . . . Total Robot Build Rating . | . . . Part Schematics Acquired . | . . . Parts Built . | . . . Authchips . | . . . Time . | . . . Total Part Build Rating . | . . . Part Studies Acquired . | . . . Parts Repaired 1 | . 1 . Time 13 | . 13 . Parts Recycled . | . . . Recycled Matter . | . . . Retrieved Matter . | . . . Retrieved Components . | . . . Parts Scanalyzed . | . . . Part Schematics Acquired . | . . . Parts Damaged . | . . . Bothacking | -11 -10 -10 ------------ Run | Yrd Mat Sub Used RIF Installer . | . . . Robots Hacked . | . . . Non-combat . | . . . Combat . | . . . Robot Hacks Applied . | . . . Relay Couplers Released . | . . . Fabnet Peak Effective % . | . . . Robots Rewired . | . . . Allies Hacked . | . . . Hacks Repelled . | . . . Allies | -11 -10 -10 -------- Run | Yrd Mat Sub Total Allies . | . . . Largest Group . | . . . Highest-Rated Group . | . . . Highest-Rated Ally . | . . . Total Orders . | . . . Ally Attacks . | . . . Total Damage . | . . . Kills . | . . . Allies Corrupted . | . . . Allies Melted . | . . . Intel | -11 -10 -10 ------- Run | Yrd Mat Sub Active Infowar (turns) 1780 | . 349 1431 Seismic 1780 | . 349 1431 Robot Analysis Total . | . . . Derelict Logs Recovered . | . . . Drone Launches . | . . . Drone Recoveries . | . . . Exploration | -11 -10 -10 ------------- Run | Yrd Mat Sub Turns Passed 2253 | 115 707 1431 Spaces Moved 1134 | 66 366 702 Core 3 | 3 . . Treads 1131 | 63 366 702 Legs . | . . . Wheels . | . . . Hover . | . . . Flight . | . . . Fastest Speed 50 | 50 160 160 Average Speed 159 | 155 160 160 Slowest Speed 160 | 160 160 160 Overloaded Moves . | . . . Propulsion Burnouts . | . . . Robots Hopped . | . . . Potential Cave-ins . | . . . Cave-ins Triggered . | . . . Exploration Rate (%) 29 | 4 48 35 Regions Visited 2 Branch Regions 1 Pre-discovered Areas . | . . . Known Exits Taken . | . . . Unknown Exits Taken 2 | 1 1 . Scrap Searched 2 | . . 2 Spaces Dug . | . . . Terrain Destroyed 12 | . 3 9 Melee . | . . . Projectile . | . . . AOE 12 | . 3 9 Terrain Rammed . | . . . Walls Destroyed . | . . . Machines Disabled . | . . . Actions | -11 -10 -10 --------- Run | Yrd Mat Sub Total 1464 | 75 426 963 Wait 239 | . 23 216 Move 1132 | 65 365 702 Hop . | . . . Pick Up 10 | 3 4 3 Fast Attach 8 | 6 2 . Attach 2 | . . 2 Detach . | . . . Swap 9 | 1 2 6 Drop 2 | . . 2 Fire 62 | . 30 32 Melee . | . . . Ram . | . . . Kick . | . . . Crush . | . . . Escape Stasis . | . . . Rewire . | . . . Trap . | . . . Miscellaneous . | . . . Route ------- -11/Scrapyard -10/Materials (discovered 3 exits: [*Mat] / [*Min] / *Sub) -10/Subcaves History --------- Turn | Location | Event 6 | -11/Scrapyard | Discovered new exit (range 15) 116 | -11/Scrapyard | Entered Materials 307 | -10/Materials | Build established: Mutant 561 | -10/Materials | Discovered new exit (range 12) 673 | -10/Materials | Repaired EM Pulse Gun 707 | -10/Materials | Discovered new exit (range 9) 737 | -10/Materials | Discovered new exit (range 16) 823 | -10/Materials | Entered Subcaves 824 | -10/Subcaves | Approached by a straggling Scientist 1432 | -10/Subcaves | A swath of the cavern ceiling suddenly collapsed 1523 | -10/Subcaves | Visited 4L-MR0's lab 1548 | -10/Subcaves | Found Prototype Special Melee Weapon 2005 | -10/Subcaves | Core integrity fell below 50% 2251 | -10/Subcaves | Core integrity fell below 20% 2254 | -10/Subcaves | Destroyed by Q4-RTP(R) with Subdweller Beam Cannon Last Messages --------------- 02037_ Subatomizers dissect the Multitool, destroying it. 02054_ S-10 Pest destroyed. 02072_ Flight Unit fries itself beyond repair. 02073_ Y-45 Defender Lgt. Treads blasted off. 02076_ Y-45 Defender knocked back. 02082_ Y-45 Defender destroyed. 02086_ Subatomizers dissect the Lgt. Treads. 02092_ Heat Sink fries itself beyond repair. 02095_ Lgt. Armor Plating fries itself beyond repair. 02100_ Subatomizers dissect the Lgt. Treads. 02101_ Acquired 4 matter. 02103_ Acquired 42 matter. 02113_ Subatomizers dissect the Lgt. Treads. 02117_ Acquired 9 matter. 02120_ Acquired 4 matter. 02250_ Battle Cannon destroyed. 02253_ Lgt. Ion Engine destroyed. Map ----- +----------------------------------------------------+ | ??????????????????????????????????????????# ##? | | ??????????????????????????????????????????# #?? | | ??????????????????????????????????????????# ##?? | | ??????????????????????????????????????????# ##??? | | ?????????????????????????????????????????## #??? | | ?????????????????????????????????????????# #??? | | ?????????????????????????????????????????## ##?? | | ?????????????????????????????????????????# #?? | | ??????????????????????????????????##?##??## ### | | ??????????????????????????????????# ## ??# | | ?????????????????????????????????##* #?# " | | ?????????????????????????????????# % ## # | | ??????????????????????????????????# ## ## | | ?????????????????????????????????## ## %#? | | ?????????????????????????????????# ##? | | ??????????????????????????????????# % ##?? | | ??????????????????????????????????# ##??? | | ??????????????????????????????????# ###?? | | ??????????????????????????????????## #?? | | ???????????????????????????????###?#### / #?? | | ?????????????????????????????## ####?## # | | ??????????????????????####?### #??# | | ?????????????????????## ### #### ## | | ???????????????????### R # # # ##### | | ???????????????????# R & " #????# | | ??????????????????# #@ " #????? | | ????????????????## ###### ###" ##????? | | ???????????????## ?????## #?## #?????? | | ???????????????# ####?????# #?# ##????? | | ??????????????# "######?# #?# #????? | | ????????????? ?% #?## #?# % ###???# | | ???????????? ????% #?## #?##= ## | | ???????????? ??????# % ### ####= # | | ????????????????????? " # ## ## | | ??????????????????????# "### ## | | ???????????????????##### #?## #### ### | | ???????????????????# # ### #??# ##??? | | ???????????????????# #?? #???? | | ???????????????????# #?? #???? | | ?????????#####?????# # ## ???? | | ?????????# ##????# ## ### ??? | | ?????????# ###### #### ### ##?? | | ??????????# ## #?? ##??? | | ??????????## ## # #? ##???? | | ???????????## ###### ## ##?## ?????? | | ????????????#### ##????###### ######????#?????? | | ???????????????#####??????????####???????????????? | | ?????????????????????????????????????????????????? | | ?????????????????????????????????????????????????? | | ?????????????????????????????????????????????????? | +----------------------------------------------------+ Best States ------------- Heat Dissipation 25 Energy Generation 10 Energy Capacity 250 Matter Stores 300 Matter Capacity 300 Sight Range 16 Terrain Scan Density 10 Evasion (%) 40 Recoil Reduction 2 Item Schematics ----------------- None Robot Schematics ------------------ None Fabricated ------------ Nothing Repaired ---------- EM Pulse Gun | 20% | -10/Materials Studied --------- None Alien Tech Used ----------------- None Achievements -------------- None Challenges ------------ None Game ------ Seed LayeredShieldWeb Manual? 0 Play Time 00:17:41 Cumulative 29.7 hours Start 2026.03.30 @ 18:43:59 End 2026.03.30 @ 20:26:49 Sessions 1 Manual Loads 0 Difficulty Rogue Special Mode None Game No. 75 Rogue 75 Adventurer 0 Explorer 0 Win Type - Total 0 Types 0/0/0/0/0/0/0/0/0/0 Lore% 26 Gallery% 28 Achievement% 21 Wizard Run 0 Options --------- Layout 2 ASCII 0 Keyboard 0 Movement Mouse Keybinds 0 Fullscreen 1 Font 32/SmallcapsGlow Map View 50x44 Zoom Use 0% Tactical HUD 1 Map Filters NONE Filters NONE Steam 1 RUN: c14f9114-9f46-4d2c-82c7-fdde04c499cb